fUST/lending_fUST_20241118
["ID","MTS","AMOUNT","RATE_DAILY","PERIOD"]
[342498582,1731933038497,-500.0,0.00014338,2]
[342498584,1731933038507,-500.0,0.00014338,2]
[342498586,1731933038519,-617.03,0.00014339,2]
[342498588,1731933038528,-500.0,0.00014339,2]
[342498589,1731933038538,-500.0,0.00014339,2]
[342498591,1731933038548,-500.0,0.00014339,2]
[342498593,1731933038557,-500.0,0.00014339,2]
[342498595,1731933038567,-500.0,0.00014339,2]
[342498597,1731933038577,-817.23668976,0.00014339,2]
[342498600,1731933038589,-202.59331024,0.00014339,2]
[342498602,1731933038599,-500.0,0.00014339,2]
[342498604,1731933038610,-1213.12,0.00014339,2]
[342498607,1731933038619,-567.26,0.00014339,2]
[342498608,1731933038628,-500.0,0.00014339,2]
[342498610,1731933038637,-808.74,0.00014339,2]
[342498612,1731933038647,-500.0,0.00014339,2]
[342498614,1731933038657,-925.28,0.00014339,2]
[342498616,1731933038666,-1725.06,0.00014339,2]
[342498617,1731933038675,-500.0,0.00014339,2]
[342498618,1731933038685,-611.57,0.00014339,2]
[342498619,1731933038695,-608.57,0.00014339,2]
[342498620,1731933038705,-866.92,0.0001434,2]
[342498621,1731933038715,-346.9,0.00014461,2]
[342498622,1731933038725,-151.0,0.00014515,2]
[342498623,1731933038735,-151.0,0.00014515,2]
[342498624,1731933038745,-151.0,0.00014515,2]
[342498625,1731933038755,-15425.78781306,0.00014515,2]
[342498626,1731933038768,-1000.0,0.00014515,2]
[342498627,1731933038779,-1664.28,0.0001461,2]
[342498628,1731933038789,-509.85,0.0001461,2]
[342498629,1731933038798,-1488.45,0.0001461,2]
[342498630,1731933038807,-500.0,0.0001461,2]
[342498631,1731933038817,-500.0,0.0001461,2]
[342498632,1731933038827,-7030.73,0.0001461,2]
[342498633,1731933038837,-500.0,0.0001461,2]
[342498634,1731933038846,-1414.89,0.0001461,2]
[342498635,1731933038856,-151.0,0.00014611,2]
[342498636,1731933038867,-799.14,0.00014611,2]
[342498637,1731933038876,-500.0,0.00014611,2]
[342498638,1731933038886,-500.0,0.00014611,2]
[342498639,1731933038896,-500.0,0.00014611,2]
[342498640,1731933038906,-500.0,0.00014611,2]
[342498641,1731933038916,-2546.77,0.00014611,2]
[342498642,1731933038925,-500.0,0.00014611,2]
[342498643,1731933038935,-539.52,0.00014611,2]
[342498644,1731933038945,-500.0,0.00014611,2]
[342498645,1731933038955,-948.48,0.00014611,2]
[342498646,1731933038965,-1254.33,0.00014611,2]
[342498647,1731933038974,-500.0,0.00014611,2]
[342498648,1731933038984,-1034.44,0.00014611,2]
[342498649,1731933038993,-500.0,0.00014611,2]
[342498650,1731933039003,-3276.47,0.00014611,2]
[342498651,1731933039018,-8232.36,0.00014611,2]
[342498652,1731933039027,-500.0,0.00014611,2]
[342498653,1731933039036,-696.8,0.00014611,2]
[342498654,1731933039047,-1343.66,0.00014611,2]
[342498655,1731933039056,-986.32,0.00014611,2]
[342498656,1731933039065,-762.94,0.00014611,2]
[342498657,1731933039075,-500.0,0.00014612,2]
[342498658,1731933039084,-500.0,0.00014612,2]
[342498659,1731933039094,-500.0,0.00014612,2]
[342498660,1731933039103,-500.0,0.00014612,2]
[342498661,1731933039113,-434.93459114,0.00014612,2]
[342498662,1731933039123,-500.0,0.00014612,2]
[342498663,1731933039132,-529.74,0.00014612,2]
[342498664,1731933039145,-500.0,0.00014612,2]
[342498665,1731933039155,-500.0,0.00014612,2]
[342498666,1731933039164,-462.76156073,0.00014612,2]
[342498667,1731933039174,-500.0,0.00014612,2]
[342498668,1731933039183,-500.0,0.00014612,2]
[342498669,1731933039193,-616.96095229,0.00014612,2]
[342498670,1731933039203,-500.0,0.00014612,2]
[342498671,1731933039212,-641.926932,0.00014612,2]
[342498672,1731933039224,-538.37695684,0.00014612,2]
[342498673,1731933039246,-103.54997516,0.00014612,2]
[342498674,1731933039256,-500.0,0.00014612,2]
[342498675,1731933039270,-651.19,0.00014612,2]
[342498676,1731933039279,-500.0,0.00014612,2]
[342498677,1731933039289,-500.0,0.00014612,2]
[342498678,1731933039299,-151.0,0.00014612,2]
[342498679,1731933039308,-500.0,0.00014612,2]
[342498680,1731933039318,-500.0,0.00014612,2]
[342498681,1731933039327,-500.0,0.00014612,2]
[342498682,1731933039336,-500.0,0.00014612,2]
[342498683,1731933039346,-120.21002484,0.00014612,2]
[342498684,1731933039388,-379.78997516,0.00014612,2]
[342498685,1731933039397,-500.0,0.00014612,2]
[342498686,1731933039407,-500.0,0.00014612,2]
[342498687,1731933039418,-500.0,0.00014612,2]
[342498688,1731933039430,-500.0,0.00014612,2]
[342498689,1731933039439,-500.0,0.00014612,2]
[342498690,1731933039449,-501.27,0.00014612,2]
[342498691,1731933039461,-500.0,0.00014612,2]
[342498692,1731933039471,-500.0,0.00014612,2]
[342498693,1731933039480,-500.0,0.00014612,2]
[342498694,1731933039490,-500.0,0.00014612,2]
[342498695,1731933039500,-563.04,0.00014612,2]
[342498696,1731933039512,-500.0,0.00014612,2]
[342498697,1731933039521,-500.0,0.00014612,2]
[342498698,1731933039531,-500.0,0.00014612,2]
[342498699,1731933039540,-500.0,0.00014612,2]
[342498700,1731933039550,-500.0,0.00014612,2]
[342498701,1731933039560,-573.92,0.00014612,2]
[342498702,1731933039570,-500.0,0.00014612,2]
[342498703,1731933039579,-500.0,0.00014612,2]
[342498704,1731933039589,-500.0,0.00014612,2]
[342498705,1731933039599,-886.07,0.00014612,2]
[342498706,1731933039609,-500.0,0.00014612,2]
[342498707,1731933039618,-500.0,0.00014612,2]
[342498708,1731933039628,-500.0,0.00014612,2]
[342498709,1731933039639,-500.0,0.00014612,2]
[342498710,1731933039649,-151.0,0.00014612,2]
[342498711,1731933039659,-671.57,0.00014612,2]
[342498712,1731933039668,-151.0,0.00014612,2]
[342498713,1731933039679,-500.0,0.00014612,2]
[342498714,1731933039688,-973.08,0.00014612,2]
[342498715,1731933039698,-500.0,0.00014612,2]
[342498716,1731933039708,-500.0,0.00014612,2]
[342498717,1731933039717,-576.95,0.00014612,2]
[342498718,1731933039727,-500.0,0.00014612,2]
[342498719,1731933039737,-500.0,0.00014612,2]
[342498720,1731933039747,-500.0,0.00014612,2]
[342498721,1731933039756,-500.0,0.00014612,2]
[342498722,1731933039771,-500.0,0.00014612,2]
[342498723,1731933039784,-500.0,0.00014612,2]
[342498724,1731933039793,-510.93,0.00014612,2]
[342498726,1731933039803,-500.0,0.00014612,2]
[342498728,1731933039812,-500.0,0.00014612,2]
[342498729,1731933039821,-500.0,0.00014612,2]
[342498730,1731933039830,-500.0,0.00014612,2]
[342498731,1731933039840,-151.0,0.00014613,2]
[342498732,1731933039850,-169.60524,0.00014613,2]
[342498733,1731933039860,-169.60524,0.00014613,2]
[342498734,1731933039870,-151.0,0.00014613,2]
[342498735,1731933039879,-151.0,0.00014613,2]
[342498736,1731933039888,-151.0,0.00014613,2]
[342498737,1731933039898,-151.0,0.00014613,2]
[342498739,1731933039908,-246.055577,0.00014613,2]
[342498740,1731933039920,-500.0,0.00014613,2]
[342498741,1731933039932,-500.0,0.00014613,2]
[342498742,1731933039941,-500.0,0.00014613,2]
[342498743,1731933039951,-500.0,0.00014613,2]
[342498744,1731933039961,-500.0,0.00014613,2]
[342498746,1731933039970,-266.917068,0.00014613,2]
[342498748,1731933039979,-641.926932,0.00014613,2]
[342498750,1731933039989,-266.917068,0.00014613,2]
[342498752,1731933039998,-641.926932,0.00014613,2]
[342498754,1731933040008,-1019.83,0.00014613,2]
[342498756,1731933040020,-500.0,0.00014613,2]
[342498758,1731933040030,-1213.12,0.00014613,2]
[342498760,1731933040039,-439.60234978,0.00014613,2]
[342498827,1731933046282,-699.25,0.00014062,2]
[342498829,1731933046293,-379.09245987,0.00014064,2]
[342498945,1731933079655,3113.1756902,0.00013535,2]
[342498946,1731933211541,26.960399,0.00013699,2]
[342498953,1731934029134,-158.82347023,0.00012719,2]
[342498954,1731934046100,-204.86515219,0.00012719,2]
[342498962,1731934145383,-2056.95025828,0.00012719,2]
[342498963,1731934145407,-270.17638347,0.00012815,2]
[342498964,1731934145428,-2866.0,0.00012915,2]
[342498965,1731934145449,-300.0,0.00013036,2]
[342498966,1731934145471,-300.0,0.00013036,2]
[342498967,1731934145494,-24900.0,0.00013037,2]
[342498968,1731934145515,-753.73518956,0.00013498,2]
[342498969,1731934148142,-792.93005906,0.00013498,2]
[342498970,1731934148164,-248.23824043,0.00013598,2]
[342498971,1731934148184,-168.91561297,0.00013598,2]
[342498972,1731934148204,-771.95275032,0.00013698,2]
[342498973,1731934148224,-73.88082742,0.00013698,2]
[342498974,1731934149114,-426.11917258,0.00013698,2]
[342498975,1731934149136,-503.01942539,0.00013698,2]
[342498976,1731934149160,-500.0,0.00013698,2]
[342498977,1731934149183,-500.0,0.00013698,2]
[342498978,1731934149205,-298.22795768,0.00013698,2]
[342498979,1731934149227,-500.0,0.00013698,2]
[342498980,1731934149248,-500.0,0.00013698,2]
[342498981,1731934149268,-543.58534309,0.00013698,2]
[342498982,1731934149289,-500.0,0.00013698,2]
[342498983,1731934149310,-500.0,0.00013698,2]
[342498984,1731934149332,-500.0,0.00013698,2]
[342498985,1731934149353,-308.9407756,0.00013698,2]
[342498986,1731934149373,-500.0,0.00013698,2]
[342498987,1731934149393,-500.0,0.00013698,2]
[342498988,1731934149422,-500.0,0.00013698,2]
[342498989,1731934149443,-500.0,0.00013698,2]
[342498990,1731934149464,-500.0,0.00013698,2]
[342498991,1731934149485,-500.0,0.00013698,2]
[342498992,1731934149506,-2336.0,0.00013698,2]
[342498993,1731934149528,-500.0,0.00013698,2]
[342498994,1731934149548,-500.0,0.00013698,2]
[342498995,1731934149568,-226.94508697,0.00013698,2]
[342498996,1731934149590,-500.0,0.00013698,2]
[342498997,1731934149611,-590.62,0.00013698,2]
[342498998,1731934149631,-500.0,0.00013698,2]
[342498999,1731934149652,-500.0,0.00013698,2]
[342499000,1731934149675,-500.0,0.00013698,2]
[342499001,1731934149696,-500.0,0.00013698,2]
[342499002,1731934149717,-505.72012664,0.00013698,2]
[342499003,1731934149738,-500.0,0.00013698,2]
[342499004,1731934149761,-500.0,0.00013698,2]
[342499005,1731934149782,-500.0,0.00013698,2]
[342499006,1731934149802,-503.52951432,0.00013698,2]
[342499007,1731934149823,-500.0,0.00013698,2]
[342499008,1731934149846,-500.0,0.00013698,2]
[342499009,1731934149866,-500.0,0.00013698,2]
[342499010,1731934149886,-500.0,0.00013698,2]
[342499011,1731934149907,-500.0,0.00013698,2]
[342499012,1731934149928,-500.0,0.00013698,2]
[342499013,1731934149950,-500.0,0.00013698,2]
[342499014,1731934149972,-500.0,0.00013698,2]
[342499015,1731934149995,-500.0,0.00013698,2]
[342499016,1731934150015,-500.0,0.00013698,2]
[342499017,1731934150036,-519.19,0.00013698,2]
[342499018,1731934150058,-500.0,0.00013698,2]
[342499019,1731934150078,-500.0,0.00013698,2]
[342499020,1731934150098,-400.1399312,0.00013698,2]
[342499021,1731934150120,-500.0,0.00013698,2]
[342499022,1731934150140,-500.0,0.00013698,2]
[342499023,1731934150182,-500.0,0.00013698,2]
[342499024,1731934150282,-506.35455362,0.00013698,2]
[342499025,1731934150447,-500.0,0.00013698,2]
[342499026,1731934150471,-2866.91,0.00013698,2]
[342499027,1731934150493,-500.0,0.00013698,2]
[342499028,1731934150516,-6601.12,0.00013698,2]
[342499029,1731934150539,-502.9818546,0.00013698,2]
[342499030,1731934150560,-500.0,0.00013698,2]
[342499031,1731934150580,-511.77381879,0.00013698,2]
[342499032,1731934150602,-500.0,0.00013698,2]
[342499033,1731934150624,-500.0,0.00013698,2]
[342499034,1731934150646,-7901.94,0.00013698,2]
[342499035,1731934150669,-505.98275399,0.00013698,2]
[342499036,1731934150691,-500.0,0.00013698,2]
[342499037,1731934150712,-716.98,0.00013698,2]
[342499038,1731934150734,-500.0,0.00013698,2]
[342499039,1731934150756,-1395.15,0.00013698,2]
[342499040,1731934150794,-501.81927744,0.00013698,2]
[342499041,1731934150815,-500.0,0.00013698,2]
[342499042,1731934150858,-916.21,0.00013698,2]
[342499043,1731934150880,-1241.94,0.00013698,2]
[342499044,1731934150901,-501.86252098,0.00013698,2]
[342499045,1731934150926,-503.70125368,0.00013698,2]
[342499046,1731934150948,-667.57,0.00013698,2]
[342499047,1731934150972,-500.0,0.00013698,2]
[342499048,1731934150994,-500.0,0.00013698,2]
[342499049,1731934151017,-503.03025797,0.00013698,2]
[342499050,1731934151039,-500.0,0.00013698,2]
[342499051,1731934151061,-500.0,0.00013698,2]
[342499052,1731934151085,-500.0,0.00013698,2]
[342499053,1731934151108,-694.77,0.00013698,2]
[342499054,1731934151129,-503.00209994,0.00013698,2]
[342499055,1731934151151,-500.0,0.00013698,2]
[342499056,1731934151180,-500.0,0.00013698,2]
[342499057,1731934151201,-505.72001805,0.00013698,2]
[342499058,1731934151223,-500.0,0.00013698,2]
[342499059,1731934151245,-500.0,0.00013698,2]
[342499060,1731934151266,-500.0,0.00013698,2]
[342499061,1731934151287,-453.86201782,0.00013698,2]
[342499062,1731934151311,-500.0,0.00013698,2]
[342499063,1731934151332,-500.0,0.00013698,2]
[342499064,1731934151354,-500.0,0.00013698,2]
[342499065,1731934151375,-283.87815013,0.00013698,2]
[342499066,1731934151397,-500.0,0.00013698,2]
[342499067,1731934151423,-500.0,0.00013698,2]
[342499068,1731934151445,-775.31,0.00013698,2]
[342499069,1731934151466,-500.0,0.00013698,2]
[342499070,1731934151486,-568.60093428,0.00013698,2]
[342499071,1731934151506,-500.0,0.00013698,2]
[342499072,1731934151526,-500.0,0.00013698,2]
[342499073,1731934151547,-500.0,0.00013698,2]
[342499074,1731934151568,-629.9214882,0.00013698,2]
[342499075,1731934151591,-550.27,0.00013698,2]
[342499076,1731934151613,-2228.42,0.00013698,2]
[342499077,1731934151634,-500.0,0.00013698,2]
[342499078,1731934151655,-500.0,0.00013698,2]
[342499079,1731934151678,-500.0,0.00013698,2]
[342499080,1731934151698,-500.0,0.00013698,2]
[342499081,1731934151720,-500.0,0.00013698,2]
[342499082,1731934151741,-500.0,0.00013698,2]
[342499083,1731934151768,-500.0,0.00013698,2]
[342499084,1731934151789,-500.0,0.00013698,2]
[342499085,1731934151810,-500.0,0.00013698,2]
[342499086,1731934151830,-500.0,0.00013698,2]
[342499087,1731934151852,-504.91536972,0.00013698,2]
[342499088,1731934151872,-501.51446838,0.00013698,2]
[342499089,1731934151892,-500.0,0.00013698,2]
[342499090,1731934151913,-500.0,0.00013698,2]
[342499091,1731934151935,-500.0,0.00013698,2]
[342499092,1731934151956,-590.27473501,0.00013698,2]
[342499093,1731934151979,-501.61494409,0.00013698,2]
[342499094,1731934152000,-504.00207565,0.00013698,2]
[342499095,1731934152021,-829.92,0.00013698,2]
[342499096,1731934152237,-600.77269154,0.00013698,2]
[342499097,1731934152259,-500.0,0.00013698,2]
[342499098,1731934152281,-501.27994742,0.00013698,2]
[342499099,1731934152302,-515.67862687,0.00013698,2]
[342499100,1731934152322,-1097.54,0.00013698,2]
[342499101,1731934152342,-500.0,0.00013698,2]
[342499102,1731934152363,-502.34739337,0.00013698,2]
[342499103,1731934152383,-500.0,0.00013698,2]
[342499104,1731934152404,-500.0,0.00013698,2]
[342499105,1731934152429,-500.0,0.00013698,2]
[342499106,1731934152450,-500.0,0.00013698,2]
[342499107,1731934152472,-304.95166795,0.00013698,2]
[342499108,1731934152493,-500.0,0.00013698,2]
[342499109,1731934152513,-500.0,0.00013698,2]
[342499110,1731934152534,-594.38178555,0.00013698,2]
[342499111,1731934152555,-481.44733328,0.00013698,2]
[342499112,1731934152816,-18.55266672,0.00013698,2]
[342499113,1731934152838,-500.0,0.00013698,2]
[342499114,1731934152861,-500.0,0.00013698,2]
[342499115,1731934152882,-500.0,0.00013698,2]
[342499116,1731934152902,-505.13673602,0.00013698,2]
[342499117,1731934152926,-1783.97,0.00013698,2]
[342499118,1731934152947,-634.90712892,0.00013698,2]
[342499119,1731934152968,-500.0,0.00013698,2]
[342499120,1731934152990,-500.0,0.00013698,2]
[342499121,1731934153012,-414.00858179,0.00013698,2]
[342499122,1731934153032,-500.0,0.00013698,2]
[342499123,1731934153053,-514.48411784,0.00013698,2]
[342499124,1731934153075,-500.0,0.00013698,2]
[342499125,1731934153096,-500.0,0.00013698,2]
[342499126,1731934153117,-500.0,0.00013698,2]
[342499127,1731934153137,-443.81785547,0.00013698,2]
[342499128,1731934153157,-500.0,0.00013698,2]
[342499129,1731934153180,-166.84010907,0.00013698,2]
[342499130,1731934153200,-500.0,0.00013698,2]
[342499131,1731934153220,-500.0,0.00013698,2]
[342499132,1731934153242,-500.0,0.00013698,2]
[342499133,1731934153264,-500.0,0.00013698,2]
[342499134,1731934153285,-500.0,0.00013698,2]
[342499135,1731934153306,-1369.67,0.00013698,2]
[342499136,1731934153327,-500.0,0.00013698,2]
[342499137,1731934153347,-500.0,0.00013698,2]
[342499138,1731934153367,-495.62458627,0.00013698,2]
[342499139,1731934153392,-990.17,0.00013698,2]
[342499140,1731934153414,-4563.3752742,0.00013699,2]
[342499141,1731934153435,-276.0418148,0.00013699,2]
[342499142,1731934153455,-248.23824043,0.0001378,2]
[342499143,1731934153476,-152.0,0.00013948,2]
[342499144,1731934153496,-248.23824043,0.00013962,2]
[342499145,1731934153517,-500.0,0.00013972,2]
[342499146,1731934153538,-500.0,0.00013972,2]
[342499147,1731934153559,-500.0,0.00013972,2]
[342499148,1731934153583,-226.12,0.00013972,2]
[342499149,1731934153604,-500.0,0.00013972,2]
[342499150,1731934153626,-590.62,0.00013972,2]
[342499151,1731934153648,-500.0,0.00013972,2]
[342499152,1731934153670,-500.0,0.00013972,2]
[342499153,1731934153690,-500.0,0.00013972,2]
[342499154,1731934153710,-500.0,0.00013972,2]
[342499155,1731934153730,-500.0,0.00013972,2]
[342499156,1731934153751,-500.0,0.00013972,2]
[342499157,1731934153775,-500.0,0.00013972,2]
[342499158,1731934153795,-500.0,0.00013972,2]
[342499159,1731934153817,-155.40642921,0.00013972,2]
[342499160,1731934153839,-500.0,0.00013972,2]
[342499161,1731934153860,-500.0,0.00013972,2]
[342499162,1731934153882,-510.29226292,0.00013972,2]
[342499163,1731934153904,-500.0,0.00013972,2]
[342499164,1731934153927,-500.0,0.00013972,2]
[342499165,1731934153949,-519.19,0.00013972,2]
[342499166,1731934153971,-500.0,0.00013972,2]
[342499167,1731934153993,-2866.91,0.00013972,2]
[342499168,1731934154014,-500.0,0.00013972,2]
[342499169,1731934154035,-6601.12,0.00013972,2]
[342499170,1731934154056,-500.0,0.00013972,2]
[342499171,1731934154078,-500.0,0.00013972,2]
[342499172,1731934154098,-500.0,0.00013972,2]
[342499173,1731934154119,-7901.94,0.00013972,2]
[342499174,1731934154140,-500.0,0.00013972,2]
[342499175,1731934154161,-716.98,0.00013972,2]
[342499176,1731934154182,-1395.15,0.00013972,2]
[342499177,1731934154202,-916.21,0.00013972,2]
[342499178,1731934154223,-1241.94,0.00013972,2]
[342499179,1731934154244,-667.57,0.00013972,2]
[342499180,1731934154265,-500.0,0.00013972,2]
[342499181,1731934154286,-195.14679887,0.00013972,2]
[342499182,1731934154306,-500.0,0.00013972,2]
[342499183,1731934154326,-694.77,0.00013972,2]
[342499184,1731934154347,-500.0,0.00013972,2]
[342499185,1731934154369,-500.0,0.00013972,2]
[342499186,1731934154389,-500.0,0.00013972,2]
[342499187,1731934154411,-500.0,0.00013972,2]
[342499188,1731934154431,-500.0,0.00013972,2]
[342499189,1731934154452,-500.0,0.00013972,2]
[342499190,1731934154472,-500.0,0.00013972,2]
[342499191,1731934154493,-500.0,0.00013972,2]
[342499192,1731934154516,-775.31,0.00013972,2]
[342499193,1731934154536,-500.0,0.00013972,2]
[342499194,1731934154557,-496.42668977,0.00013972,2]
[342499195,1731934154578,-500.0,0.00013972,2]
[342499196,1731934154599,-550.27,0.00013972,2]
[342499197,1731934154623,-2228.42,0.00013972,2]
[342499198,1731934154646,-483.30514516,0.00013972,2]
[342499199,1731934154667,-500.0,0.00013972,2]
[342499200,1731934154687,-829.92,0.00013972,2]
[342499201,1731934154708,-1097.54,0.00013972,2]
[342499202,1731934154729,-151.87431452,0.00013972,2]
[342499203,1731934154750,-500.0,0.00013972,2]
[342499204,1731934154775,-1783.97,0.00013972,2]
[342499205,1731934154797,-500.0,0.00013972,2]
[342499206,1731934154820,-500.0,0.00013972,2]
[342499207,1731934154841,-500.0,0.00013972,2]
[342499208,1731934154865,-565.08630651,0.00013972,2]
[342499209,1731934154886,-500.0,0.00013972,2]
[342499210,1731934154908,-1369.67,0.00013972,2]
[342499211,1731934154933,-990.17,0.00013972,2]
[342499212,1731934155623,506.12729842,0.00013698,2]
[342499213,1731934156119,500.0,0.00013698,2]
[342499214,1731934156704,973.36,0.00013698,2]
[342499215,1731934156998,973.36,0.00013972,2]
[342499216,1731934157742,500.0,0.00013698,2]
[342499217,1731934158408,500.0,0.00013698,2]
[342499218,1731934158732,500.0,0.00013972,2]
[342499219,1731934162188,7243.45,0.00013698,2]
[342499220,1731934162480,7243.45,0.00013972,2]
[342499221,1731934162720,501.6112477,0.00013698,2]
[342499222,1731934163793,500.0,0.00013698,2]
[342499223,1731934163849,313.13429405,0.00013698,2]
[342499224,1731934163870,2314.87570595,0.00013698,2]
[342499225,1731934164832,509.10598836,0.00013698,2]
[342499227,1731934166751,504.07500167,0.00013698,2]
[342499230,1731934169195,508.55716606,0.00013698,2]
[342499231,1731934172113,-2628.01,0.00013972,2]
[342499232,1731934172634,500.0,0.00013698,2]
[342499233,1731934172965,500.0,0.00013972,2]
[342499234,1731934175579,500.0,0.00013698,2]
[342499235,1731934176327,1138.45,0.00013698,2]
[342499236,1731934176610,1138.45,0.00013972,2]
[342499237,1731934177249,500.0,0.00013698,2]
[342499238,1731934178919,500.0,0.00013698,2]
[342499239,1731934179206,500.0,0.00013972,2]
[342499240,1731934181376,500.0,0.00013698,2]
[342499241,1731934182595,500.0,0.00013698,2]
[342499242,1731934183410,500.0,0.00013698,2]
[342499243,1731934187545,500.0,0.00013698,2]
[342499244,1731934187885,657.24,0.00013698,2]
[342499245,1731934188152,657.24,0.00013972,2]
[342499246,1731934190117,6051.03,0.00013698,2]
[342499247,1731934190348,500.0,0.00013698,2]
[342499248,1731934190383,4323.25161456,0.00013972,2]
[342499249,1731934190613,543.0977758,0.00013698,2]
[342499250,1731934191293,500.0,0.00013698,2]
[342499251,1731934191336,500.0,0.00013698,2]
[342499254,1731934195995,503.92764657,0.00013698,2]
[342499255,1731934197468,500.0,0.00013698,2]
[342499256,1731934198266,500.0,0.00013698,2]
[342499257,1731934198425,839.86,0.00013698,2]
[342499258,1731934199659,500.0,0.00013698,2]
[342499259,1731934200989,500.0,0.00013698,2]
[342499260,1731934201929,507.22377753,0.00013698,2]
[342499261,1731934202301,532.06258102,0.00013698,2]
[342499262,1731934202629,169.30403693,0.00013698,2]
[342499263,1731934203684,501.356347,0.00013698,2]
[342499264,1731934204661,500.0,0.00013698,2]
[342499265,1731934205118,500.0,0.00013698,2]
[342499266,1731934206216,500.0,0.00013698,2]
[342499267,1731934208579,611.94,0.00013698,2]
[342499268,1731934208670,1278.89,0.00013698,2]
[342499269,1731934209244,500.0,0.00013698,2]
[342499270,1731934210477,500.0,0.00013698,2]
[342499271,1731934215866,500.0,0.00013698,2]
[342499272,1731934217051,500.0,0.00013698,2]
[342499273,1731934217688,257.04,0.00013698,2]
[342499274,1731934218999,500.0,0.00013698,2]
[342499275,1731934220232,500.0,0.00013698,2]
[342499276,1731934222162,500.0,0.00013698,2]
[342499277,1731934223442,505.64600726,0.00013698,2]
[342499278,1731934224397,500.0,0.00013698,2]
[342499279,1731934224773,291.05718892,0.00013698,2]
[342499280,1731934225310,1276.62342124,0.00012506,2]
[342499281,1731934225333,19430.62383037,0.00012506,2]
[342499282,1731934225377,151.29949239,0.00012506,2]
[342499358,1731934232454,-505.19910966,0.00013698,2]
[342499360,1731934232466,-500.0,0.00013698,2]
[342499362,1731934232486,-300.0,0.00013971,2]
[342499364,1731934232501,-1727.77838544,0.00013972,2]
[342499366,1731934232511,-500.0,0.00013972,2]
[342499368,1731934232520,-500.0,0.00013972,2]
[342499370,1731934232532,-839.86,0.00013972,2]
[342499372,1731934232542,-500.0,0.00013972,2]
[342499374,1731934232552,-500.0,0.00013972,2]
[342499377,1731934232563,-1278.89,0.00013972,2]
[342499379,1731934232572,-611.94,0.00013972,2]
[342499381,1731934232583,-500.0,0.00013972,2]
[342499383,1731934232594,-500.0,0.00013972,2]
[342499385,1731934232604,-500.0,0.00013972,2]
[342499387,1731934232614,-500.0,0.00013972,2]
[342499389,1731934232623,-500.0,0.00013972,2]
[342499391,1731934232633,-500.0,0.00013972,2]
[342499393,1731934232643,-300.0,0.00014059,2]
[342499395,1731934232652,-500.0,0.0001406,2]
[342499397,1731934232663,-500.0,0.0001406,2]
[342499399,1731934232673,-500.0,0.0001406,2]
[342499401,1731934232683,-500.0,0.00014061,2]
[342499403,1731934232693,-500.0,0.00014061,2]
[342499405,1731934232702,-500.0,0.00014061,2]
[342499407,1731934232712,-500.0,0.00014061,2]
[342499409,1731934232721,-500.0,0.00014061,2]
[342499411,1731934232737,-500.0,0.00014061,2]